bitfinex/quotes_ETHUSD_20240715
["timestamp","ask_amount","ask_price","bid_price","bid_amount"]
[1721044500332,3.78114798,3348.3,3348.2,1.15762061]
[1721044500581,3.78114798,3348.3,3348.2,4.15762061]
[1721044500771,4.4061669,3348.3,3348.2,1.15762061]
[1721044501467,3.68093367,3348.3,3348.2,1.15762061]
[1721044501769,3.80674531,3348.3,3348.2,1.15762061]
[1721044502639,0.72522639,3348.3,3348.2,1.15762061]
[1721044502883,0.19293208,3348.3,3348.2,4.15762061]
[1721044503178,0.62501892,3348.4,3348.2,4.15762061]
[1721044503378,0.62501892,3348.6,3348.3,2.9865]
[1721044503599,0.53212401,3348.5,3348.4,4.093]
[1721044503738,0.19284694,3348.5,3348.4,4.1574182]
[1721044504383,0.62501892,3348.7,3348.4,8.6738982]
[1721044504880,0.62470367,3348.7,3348.4,8.6738982]
[1721044505043,0.19279029,3348.6,3348.4,8.6738982]
[1721044505244,0.62470367,3348.8,3348.4,8.6738982]
[1721044505486,1.34945515,3348.8,3348.4,8.6738982]
[1721044505670,0.72475148,3348.7,3348.4,8.6738982]
[1721044505991,1.34943995,3348.6,3348.4,8.6738982]
[1721044506160,0.19276528,3348.5,3348.4,5.6874182]
[1721044506353,0.81746895,3348.6,3348.4,5.6874182]
[1721044506543,0.19276528,3348.5,3348.4,3.0644182]
[1721044506761,2.60556528,3348.5,3348.4,0.0644182]
[1721044506989,3.06287532,3348.5,3348.4,0.0644182]
[1721044507291,3.06287532,3348.5,3348.2,3.0]
[1721044507458,2.87011004,3348.5,3348.4,0.06440395]
[1721044507648,3.59484193,3348.5,3348.3,0.06447609]
[1721044507985,2.87011004,3348.5,3348.4,0.06440395]
[1721044508154,3.59484031,3348.5,3348.4,0.06440395]
[1721044508360,3.59484031,3348.5,3348.2,3.0]
[1721044508545,2.87011004,3348.5,3348.4,0.06440395]
[1721044508744,3.59485265,3348.5,3348.3,0.06447609]
[1721044509080,3.59485265,3348.5,3348.2,3.0]
[1721044509081,2.4128,3348.5,3348.4,0.06440395]
[1721044509270,4.0745323,3348.5,3348.4,0.06440395]
[1721044509466,4.14919884,3348.5,3348.0,3.0]
[1721044509667,2.4301,3348.1,3347.8,3.0]
[1721044509979,0.6247718,3348.3,3347.8,5.98703]
[1721044510145,0.7249558,3348.3,3348.0,2.623]
[1721044510480,3.0548718,3348.4,3348.1,3.0]
[1721044510777,0.72497395,3348.3,3348.1,3.0]
[1721044510990,3.0548718,3348.4,3348.1,3.0]
[1721044511279,0.7249748,3348.3,3348.1,3.0]
[1721044511486,3.0548718,3348.4,3348.1,3.0]
[1721044511687,0.72504475,3348.3,3348.1,3.0]
[1721044512491,1.34981655,3348.3,3348.1,3.0]
[1721044512992,1.34981655,3348.2,3348.1,3.0]
[1721044514045,0.6247718,3348.2,3348.1,3.0]
[1721044514459,1.53353761,3348.2,3348.1,3.0]
[1721044514660,2.3791,3348.1,3347.7,3.0]
[1721044514989,1.35054536,3348.0,3347.7,3.0]
[1721044515206,3.00432096,3348.1,3347.7,3.0]
[1721044515497,0.72558775,3348.0,3347.7,3.0]
[1721044515648,1.35080871,3348.0,3347.7,3.0]
[1721044516095,1.35080871,3348.0,3347.7,5.98711]
[1721044516259,2.3791,3348.1,3347.8,2.98702]
[1721044516587,0.62522096,3348.1,3348.0,2.623]
[1721044516776,0.62522096,3348.1,3348.0,5.623]
[1721044517155,1.3508695,3348.1,3348.0,5.623]
[1721044517388,2.3207,3348.4,3348.0,5.623]
[1721044517552,0.62547613,3348.1,3348.0,5.623]
[1721044517963,0.62549402,3348.2,3348.0,5.623]
[1721044518176,1.15820703,3348.2,3348.0,5.623]
[1721044518363,0.93824103,3348.3,3348.1,3.0]
[1721044518662,1.66420245,3348.3,3348.1,3.0]
[1721044518859,0.72596142,3348.2,3348.1,3.0]
[1721044519093,1.66420245,3348.3,3348.1,3.0]
[1721044519262,1.77457709,3348.2,3348.1,3.0]
[1721044519459,2.06827332,3348.2,3348.1,3.0]
[1721044519664,1.96769994,3348.2,3347.9,3.0]
[1721044519864,0.93880812,3348.1,3347.9,3.0]
[1721044520068,1.66476954,3348.0,3347.9,3.0]
[1721044520251,0.93880812,3348.0,3347.9,3.0]
[1721044520451,1.66528991,3348.0,3347.9,3.0]
[1721044520646,4.03671876,3348.0,3347.9,3.0]
[1721044520852,4.15673078,3348.0,3347.9,3.0]
[1721044521780,1.66563078,3348.0,3347.9,3.0]
[1721044521954,0.7265149,3348.0,3347.9,3.0]
[1721044522384,0.93911588,3348.1,3347.9,5.98693]
[1721044522589,1.66563078,3348.0,3347.9,5.98693]
[1721044523114,0.93911588,3348.0,3347.9,5.98693]
[1721044523290,0.7265149,3348.0,3347.9,5.98693]
[1721044523685,3.28113012,3348.0,3347.9,6.0496985]
[1721044523981,4.10157439,3348.0,3347.9,6.0496985]
[1721044524181,2.84942713,3348.0,3347.9,6.0496985]
[1721044524356,4.10157439,3348.0,3347.9,6.0496985]
[1721044525365,4.10157439,3348.0,3347.9,9.0366385]
[1721044525565,4.10157439,3348.0,3347.9,12.0235785]
[1721044525566,1.66812083,3348.0,3347.9,12.0235785]
[1721044525806,1.35449492,3348.0,3347.9,12.0235785]
[1721044525958,0.72730742,3348.0,3347.9,12.0235785]
[1721044526154,0.6271875,3348.1,3348.0,8.96055]
[1721044526360,0.72763909,3348.1,3348.0,15.84857504]
[1721044526606,0.6271875,3348.2,3348.1,11.13228]
[1721044526771,0.6271875,3348.3,3348.2,2.98667]
[1721044526999,0.72751746,3348.3,3348.2,5.98667]
[1721044527316,0.62708749,3348.4,3348.3,5.97318]
[1721044527529,1.56696573,3348.8,3348.3,5.97318]
[1721044527530,2.98511,3350.0,3348.6,2.98628]
[1721044527676,1.56772271,3348.8,3348.7,5.98623]
[1721044527888,3.59737063,3348.8,3348.7,6.04841814]
[1721044528206,4.41762848,3348.8,3348.7,6.04841814]
[1721044529416,2.84990577,3348.8,3348.7,6.04841814]
[1721044529633,2.84990577,3348.8,3348.7,12.56111795]
[1721044529927,1.66755948,3348.8,3348.7,12.56111795]
[1721044530082,2.07348909,3348.8,3348.7,12.56111795]
[1721044530277,1.66726811,3348.8,3348.7,12.56111795]
[1721044530518,0.72712443,3348.8,3348.7,12.56111795]
[1721044531193,1.35369903,3348.8,3348.7,12.56111795]
[1721044531378,0.72712443,3348.8,3348.7,12.56111795]
[1721044531578,0.5337337,3348.8,3348.7,12.56111795]
[1721044531785,0.6265746,3348.9,3348.8,5.97228]
[1721044532120,1.15972963,3348.9,3348.8,9.67400556]
[1721044532290,0.62635885,3348.9,3348.8,9.77201709]
[1721044532483,1.35297045,3348.9,3348.8,9.77201709]
[1721044532880,1.15972963,3348.9,3348.8,9.77201709]
[1721044533194,1.25358476,3349.1,3349.0,2.98596]
[1721044533406,3.2821873,3349.1,3349.0,5.98596]
[1721044533611,4.10140211,3349.1,3349.0,6.08382339]
[1721044534207,4.10137644,3349.1,3349.0,6.08382339]
[1721044534518,1.54570013,3349.1,3349.0,6.08382339]
[1721044534904,6.95801229,3349.1,3349.0,3.09786339]
[1721044535121,7.2699643,3349.1,3349.0,0.09786339]
[1721044535283,7.1844643,3349.1,3349.0,0.09786339]
[1721044535582,3.28432753,3349.1,3349.0,0.09786339]
[1721044535789,4.84948257,3349.1,3348.4,5.98649]
[1721044535980,0.62605589,3348.6,3348.4,5.98649]
[1721044536221,0.53316378,3348.5,3348.4,3.0]
[1721044536382,0.07465765,3349.0,3348.3,5.98658]
[1721044536585,0.62605903,3348.5,3348.3,5.98658]
[1721044536818,0.19321143,3348.4,3348.3,5.98658]
[1721044537037,0.62605903,3348.6,3348.3,6.883914]
[1721044537184,1.35240546,3348.6,3348.3,6.883914]
[1721044537387,0.19320091,3348.5,3348.3,6.883914]
[1721044537620,0.62605903,3348.6,3348.3,6.883914]
[1721044538152,0.62605903,3348.6,3348.4,2.98644]
[1721044538324,0.19319289,3348.6,3348.5,3.70786137]
[1721044538483,0.62605903,3348.8,3348.5,3.70786137]
[1721044538678,1.35220805,3348.8,3348.5,3.80609078]
[1721044538929,0.72614902,3348.7,3348.6,5.97264]
[1721044539234,0.62605903,3348.8,3348.7,2.98623]
[1721044539448,1.35221789,3348.8,3348.7,2.98623]
[1721044539578,1.35221789,3348.8,3348.7,6.08431299]
[1721044539782,1.35220168,3348.8,3348.7,6.08431299]
[1721044540196,2.4551,3349.3,3348.8,2.98613]
[1721044540401,0.93883608,3349.0,3348.9,3.0]
[1721044540614,1.47180809,3349.0,3348.9,3.09793658]
[1721044540819,1.66492143,3349.0,3348.9,3.09793658]
[1721044541129,1.54483226,3349.0,3348.9,3.09793658]
[1721044541421,1.35171892,3349.0,3348.9,3.09793658]
[1721044541622,1.35171892,3349.0,3348.9,0.09793658]
[1721044541921,1.54483226,3349.0,3348.9,0.09793658]
[1721044542328,1.35171892,3349.0,3348.9,0.09793658]
[1721044542819,0.81874691,3349.0,3348.9,0.09793658]
[1721044543018,1.54480185,3349.0,3348.9,0.09793658]
[1721044543241,0.93872948,3349.0,3348.9,0.09793658]
[1721044543425,0.72605494,3349.0,3348.9,4.25331024]
[1721044543627,0.93872948,3349.1,3349.0,2.98596]
[1721044544233,1.47156691,3349.1,3349.0,6.08382059]
[1721044544596,1.66461557,3349.1,3349.0,6.08382059]
[1721044544796,1.47156691,3349.1,3349.0,6.08382059]
[1721044545521,0.72588609,3349.1,3349.0,6.08382059]
[1721044545681,0.72588609,3349.1,3349.0,7.25311565]
[1721044545887,0.6256632,3349.1,3349.0,7.25311565]
[1721044546329,0.53277362,3349.1,3349.0,7.25311565]
[1721044546630,0.81868458,3349.2,3349.0,7.25311565]
[1721044546631,0.6256632,3349.2,3349.1,2.98587]
[1721044546921,1.35128866,3349.2,3349.1,5.98587]
[1721044547137,1.35128866,3349.2,3349.1,6.08365739]
[1721044547490,0.72562546,3349.2,3349.1,6.08365739]
[1721044547834,0.19296505,3349.2,3349.1,9.1425577]
[1721044547993,0.6256632,3349.4,3349.3,2.98569]
[1721044548188,0.72551647,3349.4,3349.3,5.98569]
[1721044548538,1.35117967,3349.4,3349.3,6.08328403]
[1721044548743,1.35117967,3349.4,3349.3,7.25257909]
[1721044549027,1.15824805,3349.4,3349.3,7.25257909]
[1721044549426,0.53245945,3349.4,3349.3,10.23826909]
[1721044549647,0.6256632,3349.5,3349.4,5.9712]
[1721044549849,1.15803156,3349.5,3349.4,8.9712]
[1721044550029,0.6256632,3349.6,3349.5,2.98552]
[1721044550230,0.19281614,3349.6,3349.5,11.59404]
[1721044550522,3.19142948,3349.9,3349.5,8.70596768]
[1721044550523,0.6256632,3349.8,3349.5,8.70596768]
[1721044550738,1.35059396,3349.8,3349.7,2.98534]
[1721044551103,1.35059396,3349.8,3349.7,6.0826263]
[1721044551504,0.72493076,3349.8,3349.7,6.0826263]
[1721044552239,1.35059396,3349.8,3349.7,3.0972863]
[1721044552404,0.72493076,3349.8,3349.7,3.0972863]
[1721044552601,1.35028396,3349.8,3349.7,3.0972863]
[1721044553131,1.35028396,3349.8,3349.7,0.0972863]
[1721044553314,3.13832076,3349.8,3349.7,0.0972863]
[1721044553709,3.13832076,3349.8,3349.2,3.0]
[1721044553710,3.13832076,3349.8,3349.2,5.98578]
[1721044553943,1.34932849,3349.7,3349.2,5.98578]
[1721044554133,1.34932849,3349.6,3349.2,5.98578]
[1721044554312,0.19267851,3349.5,3349.2,5.98578]
[1721044554517,0.62470773,3349.6,3349.2,5.98578]
[1721044554518,2.3123,3349.4,3349.2,5.98578]
[1721044554942,2.3123,3349.4,3349.2,3.0]
[1721044555599,2.3123,3349.4,3349.2,5.98578]
[1721044557448,2.3123,3349.4,3349.2,3.0]
[1721044558969,2.2559,3349.2,3348.5,7.41]
[1721044559167,2.2559,3349.2,3348.4,2.98648]
[1721044559168,1.34947209,3349.1,3348.4,2.98648]
[1721044559467,2.2559,3349.2,3348.4,2.98648]
[1721044559468,1.34947209,3349.0,3348.4,2.98648]
[1721044559668,0.62466749,3349.1,3348.4,2.98648]
[1721044559832,1.34953081,3349.1,3348.4,2.98648]
[1721044560267,1.34953081,3349.1,3348.5,3.0]
[1721044560466,1.34953081,3349.0,3348.5,3.0]
[1721044560657,0.19279194,3348.9,3348.5,3.0]
[1721044560858,0.62466749,3349.0,3348.5,3.0]
[1721044561745,1.34970961,3348.9,3348.5,3.0]
[1721044561940,0.62466749,3349.0,3348.5,3.0]
[1721044562884,0.7250837,3349.0,3348.7,2.98616]
[1721044563051,0.62466749,3349.1,3348.8,5.98608]
[1721044563237,2.88056749,3349.2,3348.8,5.98608]
[1721044563437,0.19283125,3349.1,3348.8,5.98608]
[1721044563754,1.34978779,3349.1,3348.8,5.98608]
[1721044564175,0.62466749,3349.0,3348.8,5.98608]
[1721044564681,2.94496749,3348.9,3348.8,3.0]
[1721044564883,2.51320277,3348.9,3348.7,3.0]
[1721044565189,0.62517101,3349.1,3348.7,3.5623]
[1721044565338,1.35040906,3349.1,3348.7,3.5623]
[1721044565676,2.94547101,3349.2,3348.9,2.98605]
[1721044565880,0.72532168,3349.1,3349.0,3.0]
[1721044566035,0.72531917,3349.1,3349.0,3.0]
[1721044566470,1.35049018,3349.1,3349.0,3.0]
[1721044567772,0.72571227,3349.1,3349.0,3.0]
[1721044568085,1.35126297,3349.1,3349.0,3.0]
[1721044568439,1.6634616,3349.1,3349.0,3.0]
[1721044568644,1.6634616,3349.1,3349.0,3.09469909]
[1721044569940,1.5444378,3349.1,3349.0,3.09469909]
[1721044570157,4.46490526,3349.1,3349.0,0.09469909]
[1721044570353,5.71524729,3349.1,3349.0,0.09469909]
[1721044570585,2.2605,3349.0,3348.4,3.0]
[1721044570787,2.2605,3348.5,3348.4,3.0]
[1721044570942,2.45350654,3348.5,3348.4,3.0]
[1721044571140,3.61307667,3348.5,3348.4,3.0]
[1721044571383,2.98695715,3348.5,3348.4,5.9865]
[1721044571680,3.61307667,3348.5,3348.4,5.9865]
[1721044572345,2.45373271,3348.5,3348.4,5.9865]
[1721044572569,0.62611952,3348.7,3348.5,2.98635]
[1721044572774,0.62611952,3348.7,3348.6,3.0]
[1721044572976,0.19324661,3348.7,3348.6,3.0]
[1721044573283,0.62611952,3348.8,3348.6,3.0]
[1721044573445,0.62611952,3348.8,3348.7,2.98623]
[1721044573783,1.35280794,3348.8,3348.7,5.98623]
[1721044574087,0.7265472,3348.8,3348.7,8.97246]
[1721044574245,0.62626074,3348.8,3348.7,8.97246]
[1721044574442,1.35276133,3348.9,3348.8,2.98614]
[1721044574751,2.27,3349.3,3348.9,2.986]
[1721044574942,0.93940087,3349.1,3348.9,2.986]
[1721044575283,1.5457872,3349.1,3349.0,5.98596]
[1721044575486,1.54579055,3349.1,3349.0,5.98596]
[1721044576762,1.97907046,3349.1,3349.0,5.98596]
[1721044577071,1.54579055,3349.1,3349.0,5.98596]
[1721044577246,1.5458902,3349.1,3349.0,5.98596]
[1721044577449,0.81925459,3349.2,3349.0,5.98596]
[1721044577650,1.97929866,3349.1,3349.0,5.98596]
[1721044577947,2.79855325,3349.1,3349.0,5.98596]
[1721044578242,1.97929866,3349.1,3349.0,5.98596]
[1721044578646,2.79855325,3349.1,3349.0,3.0]
[1721044578875,1.44593042,3349.1,3349.0,3.0]
[1721044579185,1.97929866,3349.1,3349.0,3.0]
[1721044579689,1.54587724,3349.1,3349.0,3.0]
[1721044579894,5.2713399,3349.1,3348.8,3.0]
[1721044580095,1.25278238,3348.9,3348.6,3.0]
[1721044580284,0.93957362,3348.7,3348.6,3.0]
[1721044580480,1.13282803,3348.7,3348.6,3.0]
[1721044580662,1.66619627,3348.7,3348.6,3.0]
[1721044580875,1.66626906,3348.7,3348.6,3.0]
[1721044581191,4.12786533,3348.7,3348.6,3.0]
[1721044583248,4.70990268,3348.7,3348.6,3.0]
[1721044583477,4.70990268,3348.7,3348.2,3.0]
[1721044583684,0.93960947,3348.4,3348.2,3.0]
[1721044583882,1.1329021,3348.4,3348.1,3.0]
[1721044584117,0.62642505,3348.2,3348.1,3.0]
[1721044584320,1.15984317,3348.2,3348.1,3.0]
[1721044584520,1.15984317,3348.2,3348.0,7.41]
[1721044584521,2.3509,3348.1,3348.0,7.41]
[1721044584713,4.01728404,3348.1,3348.0,7.41]
[1721044584908,4.70834719,3348.1,3348.0,7.41]
[1721044585119,3.76873772,3348.1,3348.0,7.41]
[1721044585334,4.01725323,3348.1,3348.0,7.41]
[1721044585687,3.70385044,3348.1,3348.0,7.41]
[1721044586133,3.70385044,3348.1,3348.0,10.39685]
[1721044586303,3.70385044,3348.1,3348.0,13.39685]
[1721044587082,3.70385044,3348.1,3348.0,5.98685]
[1721044587281,3.70349855,3348.1,3348.0,5.98685]
[1721044588346,3.07732268,3348.1,3348.0,5.98685]
[1721044589387,2.54414457,3348.1,3348.0,5.98685]
[1721044589705,3.0770529,3348.1,3348.0,5.98685]
[1721044589912,0.62617587,3348.3,3348.0,5.98685]
[1721044590111,1.35217823,3348.3,3348.1,3.0]
[1721044590288,0.72600236,3348.2,3348.1,3.0]
[1721044590494,0.62617587,3348.3,3348.1,3.0]
[1721044590705,1.35209222,3348.3,3348.1,3.0]
[1721044590905,0.19310172,3348.2,3348.1,3.0]
[1721044591122,0.72591796,3348.2,3348.1,3.0]
[1721044591324,0.19310172,3348.2,3348.1,3.0]
[1721044591539,0.62617587,3348.3,3348.1,3.0]
[1721044591540,0.81927759,3348.3,3348.1,6.884147]
[1721044591832,0.62617587,3348.3,3348.2,2.98667]
[1721044592000,0.72580461,3348.3,3348.1,3.0]
[1721044592203,1.35198048,3348.3,3348.1,3.0]
[1721044592410,0.72581458,3348.2,3348.1,3.0]
[1721044592620,1.15892325,3348.2,3348.1,3.0]
[1721044592818,0.53274738,3348.2,3348.1,3.0]
[1721044593709,0.53269755,3348.2,3348.1,3.0]
[1721044593904,0.53269736,3348.2,3348.1,3.0]
[1721044594419,0.53269053,3348.2,3348.1,3.0]
[1721044595036,0.8192395,3348.3,3348.1,3.0]
[1721044595195,0.19306363,3348.2,3348.1,3.0]
[1721044595533,0.8192395,3348.3,3348.1,3.0]
[1721044595837,0.53267216,3348.2,3348.1,3.0]
[1721044595998,1.15884803,3348.2,3348.1,3.0]
[1721044596528,3.41204803,3348.2,3348.1,3.0]
[1721044596853,2.87937587,3348.2,3347.9,3.0]
[1721044597436,1.35201754,3348.1,3347.9,3.0]
[1721044597728,0.19309524,3348.0,3347.9,3.0]
[1721044597946,2.2532,3347.9,3347.7,3.0]
[1721044598740,2.2532,3347.9,3347.8,0.09561694]
[1721044598891,2.44635013,3347.9,3347.8,0.09561694]
[1721044599096,2.44635013,3347.9,3347.7,3.0]
[1721044599331,2.2532,3347.9,3347.8,0.09561694]
[1721044599541,2.97922086,3347.9,3347.8,0.09561694]
[1721044599702,2.97922086,3347.9,3347.7,3.0]
[1721044600016,0.19315257,3347.8,3347.5,3.0]
[1721044600999,0.19315257,3347.8,3347.6,2.98721]
[1721044601301,0.62617587,3348.1,3347.7,5.98712]
[1721044601503,0.72597307,3348.1,3347.7,5.98712]
[1721044601714,3.07587587,3348.2,3347.7,5.98712]
[1721044601933,0.72593595,3348.1,3347.7,5.98712]
[1721044602118,3.07587587,3348.2,3347.7,5.98712]
[1721044602312,0.72593755,3348.1,3347.7,5.98712]
[1721044602538,1.35211342,3348.1,3347.7,5.98712]
[1721044602744,0.19311525,3348.0,3347.7,5.98712]
[1721044603036,0.62617587,3348.1,3347.7,5.98712]
[1721044603215,1.35221907,3348.1,3347.7,5.98712]
[1721044603542,0.19314869,3348.0,3347.7,5.98712]
[1721044603843,0.62617587,3348.1,3347.9,2.9869]
[1721044604019,1.35231481,3348.1,3347.9,2.9869]
[1721044604223,0.62577685,3348.1,3348.0,3.0]
[1721044604428,1.35189938,3348.1,3348.0,3.0]
[1721044604642,0.72612253,3348.1,3348.0,3.0]
[1721044604970,2.4497,3348.0,3347.8,3.0]
[1721044605111,2.4497,3347.8,3347.5,3.0]
[1721044605309,1.3520403,3347.7,3347.4,7.41]
[1721044605546,0.62591777,3347.5,3347.4,7.41]
[1721044605855,2.52517048,3347.5,3346.9,2.9878]
[1721044606012,2.52517048,3347.5,3346.8,10.033]
[1721044606013,0.62591822,3347.2,3346.8,10.033]
[1721044606216,1.35204075,3347.1,3346.8,13.0209]
[1721044606414,0.62591822,3347.2,3346.8,13.0209]
[1721044606653,1.35199985,3347.1,3346.8,10.3979]
[1721044606850,0.72609047,3347.0,3346.8,10.3979]
[1721044607148,0.62591822,3347.1,3346.8,10.3979]
[1721044607454,0.62591822,3347.2,3346.8,10.3979]
[1721044607614,0.19311232,3347.1,3346.8,10.3979]
[1721044607817,0.46591822,3347.2,3346.9,3.0]
[1721044608445,0.19310442,3347.1,3346.9,3.0]
[1721044608630,2.463,3347.3,3346.9,3.0]
[1721044608949,0.70947353,3347.2,3346.9,3.0]
[1721044609150,0.70947353,3347.1,3346.9,3.0]
[1721044609309,3.86734633,3347.3,3346.9,3.0]
[1721044609310,0.18384107,3347.0,3346.9,3.0]
[1721044609515,1.72293268,3347.2,3346.9,3.0]
[1721044609718,3.40187733,3347.0,3346.8,7.41]
[1721044609948,1.33440948,3346.9,3346.8,7.41]
[1721044610148,3.40187733,3347.0,3346.8,7.41]
[1721044610364,0.70941943,3346.9,3346.8,7.41]
[1721044610711,0.1838506,3346.9,3346.7,2.98797]
[1721044611012,1.25281262,3347.4,3346.9,2.98783]
[1721044611013,3.40187733,3347.4,3346.9,2.98783]
[1721044611223,0.70893492,3347.3,3346.9,2.98783]
[1721044611436,0.70883036,3347.2,3346.9,2.98783]
[1721044611655,0.18366339,3347.1,3346.9,2.98783]
[1721044611814,3.40187733,3347.4,3346.9,2.98783]
[1721044612010,0.70881306,3347.3,3346.9,2.98783]
[1721044612237,0.70881306,3347.2,3346.9,2.98783]
[1721044612414,3.40187733,3347.4,3346.9,2.98783]
[1721044612615,0.70869227,3347.3,3346.9,2.98783]
[1721044612849,0.18363781,3347.2,3346.9,2.98783]
[1721044613162,2.463,3347.4,3346.9,2.98783]
[1721044613357,0.70867423,3347.3,3346.9,2.98783]
[1721044613573,2.463,3347.4,3347.0,0.09626502]
[1721044613868,2.463,3347.4,3347.0,3.08399502]
[1721044614066,2.463,3347.4,3347.1,3.0]
[1721044614484,2.463,3347.4,3347.2,0.09611846]
[1721044615330,2.3059,3347.7,3347.2,3.08365846]
[1721044615586,0.70846075,3347.6,3347.2,3.08365846]
[1721044615761,2.3059,3347.7,3347.2,3.08365846]
[1721044616071,0.70841246,3347.6,3347.3,3.0]
[1721044616278,2.3059,3347.7,3347.3,3.09604519]
[1721044616878,0.18354047,3347.6,3347.3,3.09604519]
[1721044617033,2.3059,3347.7,3347.3,3.09604519]
[1721044617236,0.70844731,3347.6,3347.3,3.09604519]
[1721044617531,0.18355435,3347.5,3347.3,3.09604519]
[1721044617737,0.62438986,3347.6,3347.3,3.09604519]
[1721044617937,1.33283734,3347.6,3347.3,3.09604519]
[1721044618167,0.18355884,3347.5,3347.3,3.09604519]
[1721044618343,0.62438986,3347.6,3347.3,3.09604519]
[1721044618559,1.33283361,3347.6,3347.3,3.09604519]
[1721044618775,0.18355803,3347.5,3347.3,3.09604519]
[1721044618989,0.62438986,3347.6,3347.3,3.09604519]
[1721044619198,2.3059,3347.7,3347.3,3.09604519]
[1721044619199,2.93028986,3347.7,3347.3,3.09604519]
[1721044619397,1.33282033,3347.6,3347.3,3.09604519]
[1721044619977,2.93028986,3347.7,3347.3,3.09604519]
[1721044620206,0.18355893,3347.6,3347.3,3.09604519]
[1721044621225,2.408,3347.5,3347.3,3.09604519]
[1721044621507,0.70864269,3347.4,3347.3,0.09604519]
[1721044621720,0.70864269,3347.4,3347.1,5.98766]
[1721044621884,3.03238986,3347.5,3347.3,0.09606235]
[1721044622222,3.03238986,3347.5,3347.1,5.98766]
[1721044622223,2.408,3347.5,3347.1,5.98766]
[1721044622379,3.03238986,3347.5,3347.4,0.09598909]
[1721044622718,3.11676114,3347.5,3347.4,0.09598909]
[1721044622919,3.58476397,3347.5,3347.1,3.0]
[1721044623119,1.33347105,3347.4,3347.0,3.0]
[1721044623411,1.33347105,3347.4,3347.0,5.98773]
[1721044623587,3.03270991,3347.5,3347.0,5.98773]
[1721044623787,0.18366392,3347.4,3347.0,5.98773]
[1721044624001,0.80837383,3347.4,3347.0,5.98773]
[1721044624177,1.33356776,3347.4,3347.0,5.98773]
[1721044624379,1.33356776,3347.4,3347.0,3.0]
[1721044624803,0.62470991,3347.3,3347.0,3.0]
[1721044625308,1.14990384,3347.3,3347.0,3.0]
[1721044625522,0.62470991,3347.3,3347.0,3.0]
[1721044626173,0.6249467,3347.3,3347.0,3.0]
[1721044626379,1.3340723,3347.2,3347.0,3.0]
[1721044626717,1.3340723,3347.2,3346.3,7.41]
[1721044626718,2.424,3347.0,3346.3,7.41]
[1721044627032,2.424,3346.6,3346.3,7.41]
[1721044627324,2.424,3346.6,3346.2,2.98844]
[1721044628190,0.18359529,3346.5,3346.2,2.98844]
[1721044628508,2.424,3346.6,3346.3,3.09078327]
[1721044629118,0.62510689,3346.8,3346.5,2.98814]
[1721044629333,0.93766034,3346.9,3346.5,2.98814]
[1721044629334,0.62510689,3346.9,3346.5,2.98814]
[1721044629503,0.62510689,3346.9,3346.6,0.0905671]
[1721044629504,0.80863377,3346.9,3346.6,0.0905671]
[1721044629844,0.18351394,3346.8,3346.6,0.0905671]
[1721044630004,0.62510689,3346.9,3346.6,0.0905671]
[1721044630335,1.33385119,3346.9,3346.6,0.0905671]
[1721044630549,0.70876109,3346.8,3346.6,0.0905671]
[1721044630700,1.15034345,3346.8,3346.6,0.0905671]
[1721044630900,0.18352453,3346.7,3346.4,2.98827]
[1721044631139,0.62510689,3346.8,3346.7,0.09049346]
[1721044631325,0.62510689,3346.8,3346.5,3.0]
[1721044631326,0.70879501,3346.8,3346.5,3.0]
[1721044631521,0.62510689,3346.9,3346.7,0.09049346]
[1721044631822,3.01110689,3347.0,3346.5,3.0]
[1721044632149,0.70866956,3346.9,3346.8,0.09042017]
[1721044632516,0.70866956,3346.9,3346.5,3.0]
[1721044632850,0.62491448,3346.8,3346.5,3.0]
[1721044634136,0.1835013,3346.9,3346.5,3.0]
[1721044634137,0.62491448,3346.9,3346.5,3.0]
[1721044634352,1.33355665,3346.9,3346.5,5.98819]
[1721044634546,2.386,3347.0,3346.6,2.98809]
[1721044634547,3.01091448,3347.0,3346.6,2.98809]
[1721044634749,0.70859967,3346.9,3346.6,2.98809]
[1721044634946,3.01091448,3347.0,3346.6,2.98809]
[1721044635148,0.70860509,3346.9,3346.6,2.98809]
[1721044635452,0.18348771,3346.8,3346.6,2.98809]
[1721044635622,3.01085168,3347.0,3346.6,2.98809]
[1721044635819,0.70863237,3346.9,3346.6,2.98809]
[1721044636014,1.33348405,3346.9,3346.6,2.98809]
[1721044636917,1.33348405,3346.9,3346.5,3.0]
[1721044637152,1.33348405,3346.8,3346.5,3.0]
[1721044637354,0.18349355,3346.7,3346.5,3.0]
[1721044637655,0.62485168,3346.7,3346.5,3.0]
[1721044637960,0.62485168,3346.7,3346.3,3.0]
[1721044638362,0.07469851,3346.9,3346.3,5.98837]
[1721044638655,0.07469851,3346.9,3346.3,3.0]
[1721044638656,0.62509137,3346.7,3346.3,3.0]
[1721044638952,2.86223563,3346.6,3346.3,3.0]
[1721044639259,0.18359804,3346.5,3346.3,3.0]
[1721044639564,0.18359804,3346.5,3346.1,3.0]
[1721044640351,2.3369,3346.6,3346.1,5.9885]
[1721044640551,2.3369,3346.6,3346.2,1.196574]
[1721044641173,2.3369,3346.6,3346.2,4.185014]
[1721044641365,2.3369,3346.6,3346.3,3.0]
[1721044642267,0.62509137,3346.7,3346.3,3.0]
[1721044642476,1.33428154,3346.7,3346.3,3.40862137]
[1721044642673,0.18365325,3346.6,3346.3,3.40862137]
[1721044642853,0.62509137,3346.7,3346.3,3.40862137]
[1721044643453,0.62509137,3346.7,3346.4,0.090728]
[1721044643850,1.3342526,3346.7,3346.4,3.078958]
[1721044644054,0.62509137,3346.9,3346.8,2.98792]
[1721044644391,0.70918813,3346.9,3346.8,6.07835958]
[1721044644592,0.62509137,3347.1,3346.9,2.98777]
[1721044645093,0.93813083,3347.2,3347.0,0.09029301]
[1721044645395,0.62539697,3347.1,3347.0,0.09029301]
[1721044645568,0.52561793,3347.1,3347.0,0.09029301]
[1721044645769,0.62552448,3347.1,3347.0,3.62584907]
[1721044645970,0.18363143,3347.1,3347.0,6.62584907]
[1721044646183,0.62552448,3347.2,3347.1,2.98766]
[1721044646478,0.70926303,3347.2,3347.1,5.98766]
[1721044646793,0.70926303,3347.2,3347.1,6.0778603]